fUST/lending_fUST_20250901
["ID","MTS","AMOUNT","RATE_DAILY","PERIOD"]
[382609956,1756678158814,-380.23913147,0.00016774,2]
[382609957,1756678158835,-581.62450482,0.00016774,2]
[382609958,1756678158857,-480.0,0.00016774,2]
[382609959,1756678158879,-480.0,0.00016774,2]
[382609960,1756678158900,-480.0,0.00016774,2]
[382609961,1756678158921,-480.0,0.00016774,2]
[382609962,1756678158943,-900.25,0.00016774,2]
[382609963,1756678158964,-480.0,0.00016774,2]
[382609964,1756678158985,-480.0,0.00016774,2]
[382609965,1756678159005,-480.0,0.00016774,2]
[382609966,1756678159025,-652.62,0.00016774,2]
[382609967,1756678159045,-225.54,0.00016774,2]
[382609968,1756678159066,-569.93,0.00016774,2]
[382609969,1756678159088,-480.0,0.00016774,2]
[382609970,1756678159113,-752.81,0.00016774,2]
[382609971,1756678159135,-480.0,0.00016774,2]
[382609972,1756678159158,-860.2,0.00016774,2]
[382609973,1756678159180,-480.0,0.00016774,2]
[382609974,1756678159202,-480.0,0.00016774,2]
[382609975,1756678159224,-803.54,0.00016774,2]
[382609976,1756678159245,-480.0,0.00016774,2]
[382609977,1756678159267,-480.0,0.00016774,2]
[382609978,1756678159290,-480.0,0.00016774,2]
[382609979,1756678159311,-480.0,0.00016774,2]
[382609980,1756678159335,-480.0,0.00016774,2]
[382609981,1756678159356,-480.0,0.00016774,2]
[382609982,1756678159391,-480.0,0.00016774,2]
[382609983,1756678159416,-480.0,0.00016774,2]
[382609984,1756678159439,-480.0,0.00016774,2]
[382609985,1756678159461,-480.0,0.00016774,2]
[382609986,1756678159485,-480.0,0.00016774,2]
[382609987,1756678159509,-684.81,0.00016774,2]
[382609988,1756678159531,-480.0,0.00016774,2]
[382609989,1756678159555,-480.0,0.00016774,2]
[382609990,1756678159577,-480.0,0.00016774,2]
[382609991,1756678159599,-738.09,0.00016774,2]
[382609992,1756678159621,-480.0,0.00016774,2]
[382609993,1756678159645,-749.14,0.00016774,2]
[382609994,1756678159668,-757.4,0.00016774,2]
[382609995,1756678159692,-480.0,0.00016774,2]
[382609996,1756678159716,-484.5321476,0.00016774,2]
[382609997,1756678159740,-2830.68,0.00016774,2]
[382609998,1756678159764,-879.79,0.00016774,2]
[382609999,1756678159786,-480.0,0.00016774,2]
[382610000,1756678159808,-480.0,0.00016774,2]
[382610001,1756678159831,-1008.99,0.00016774,2]
[382610002,1756678159854,-480.0,0.00016774,2]
[382610003,1756678159879,-480.0,0.00016774,2]
[382610004,1756678159899,-480.0,0.00016774,2]
[382610005,1756678159920,-480.0,0.00016774,2]
[382610006,1756678159941,-480.0,0.00016774,2]
[382610007,1756678159964,-169.57,0.00016774,2]
[382610008,1756678159985,-480.0,0.00016774,2]
[382610009,1756678160006,-524.07,0.00016774,2]
[382610010,1756678160027,-480.0,0.00016774,2]
[382610011,1756678160047,-480.0,0.00016774,2]
[382610012,1756678160067,-480.0,0.00016774,2]
[382610013,1756678160087,-480.0,0.00016774,2]
[382610014,1756678160111,-480.0,0.00016774,2]
[382610015,1756678160133,-573.96,0.00016774,2]
[382610016,1756678160154,-911.32,0.00016774,2]
[382610017,1756678160174,-495.41,0.00016774,2]
[382610018,1756678160195,-1535.01,0.00016774,2]
[382610019,1756678160216,-480.0,0.00016774,2]
[382610020,1756678160236,-480.0,0.00016774,2]
[382610021,1756678160256,-1197.27,0.00016774,2]
[382610022,1756678160276,-764.11,0.00016774,2]
[382610023,1756678160296,-480.0,0.00016774,2]
[382610024,1756678160315,-480.0,0.00016774,2]
[382610025,1756678160336,-529.13,0.00016774,2]
[382610026,1756678160356,-752.56,0.00016774,2]
[382610027,1756678160378,-641.55,0.00016774,2]
[382610028,1756678160398,-480.0,0.00016774,2]
[382610029,1756678160419,-638.23,0.00016774,2]
[382610030,1756678160438,-176.18563323,0.00016774,2]
[382610031,1756678160458,-480.0,0.00016774,2]
[382610032,1756678160477,-480.0,0.00016774,2]
[382610033,1756678160496,-480.0,0.00016774,2]
[382610034,1756678160516,-480.0,0.00016774,2]
[382610035,1756678160536,-480.0,0.00016774,2]
[382610036,1756678160555,-480.0,0.00016774,2]
[382610037,1756678160575,-896.92,0.00016774,2]
[382610038,1756678160595,-2348.05717819,0.00016774,2]
[382610039,1756678161274,480.0,0.000165,2]
[382610040,1756678162107,2595.53,0.000165,2]
[382610041,1756678172947,194.71718286,0.000165,2]
[382610042,1756678173029,342.25281714,0.000165,2]
[382610043,1756678178848,480.0,0.000165,2]
[382610044,1756678179273,9177.75718286,0.00016404,2]
[382610045,1756678179351,10000.01,0.00016404,2]
[382610046,1756678179429,10000.01,0.00016404,2]
[382610047,1756678179508,10000.01,0.00016404,2]
[382610048,1756678179588,3350.56254797,0.00016404,2]
[382610049,1756678181458,480.0,0.000165,2]
[382610050,1756678184436,1762.48,0.000165,2]
[382610051,1756678188300,480.0,0.000165,2]
[382610052,1756678192856,3926.96745203,0.000165,2]
[382610053,1756678192940,1073.03254797,0.000165,2]
[382610054,1756678196605,620.69,0.000165,2]
[382610055,1756678199051,2710.33,0.000165,2]
[382610056,1756678208205,5000.0,0.000165,2]
[382610059,1756678216917,5000.0,0.000165,2]
[382610060,1756678219279,884.92,0.000165,2]
[382610061,1756678219979,480.0,0.000165,2]
[382610062,1756678224876,480.0,0.000165,2]
[382610063,1756678225015,567.98,0.000165,2]
[382610064,1756678227390,480.0,0.000165,2]
[382610065,1756678227900,480.0,0.000165,2]
[382610066,1756678229896,279.98960685,0.000165,2]
[382610067,1756678231313,480.0,0.000165,2]
[382610095,1756678232074,-480.0,0.00016501,2]
[382610096,1756678232084,-573.31,0.00016501,2]
[382610098,1756678232095,-480.0,0.00016501,2]
[382610100,1756678232109,-480.0,0.00016501,2]
[382610102,1756678232121,-1200.0,0.00016501,2]
[382610104,1756678232130,-480.0,0.00016502,2]
[382610106,1756678232142,-480.0,0.00016502,2]
[382610108,1756678232151,-1107.49,0.00016502,2]
[382610110,1756678232160,-480.0,0.00016502,2]
[382610112,1756678232170,-480.0,0.00016502,2]
[382610114,1756678232181,-480.0,0.00016502,2]
[382610116,1756678232192,-405.43790405,0.00016502,2]
[382610119,1756678232202,-480.0,0.00016502,2]
[382610122,1756678232211,-480.0,0.00016502,2]
[382610124,1756678232220,-480.0,0.00016502,2]
[382610128,1756678232229,-480.0,0.00016502,2]
[382610130,1756678232238,-480.0,0.00016502,2]
[382610132,1756678232247,-480.0,0.00016502,2]
[382610134,1756678232256,-480.0,0.00016502,2]
[382610136,1756678232266,-480.0,0.00016502,2]
[382610157,1756678232457,-480.0,0.00016502,2]
[382610160,1756678232471,-480.0,0.00016502,2]
[382610161,1756678232480,-480.0,0.00016504,2]
[382610163,1756678232490,-480.0,0.00016504,2]
[382610166,1756678232500,-1852.10998731,0.00016504,2]
[382610167,1756678232510,-480.0,0.00016504,2]
[382610169,1756678232520,-480.0,0.00016673,2]
[382610171,1756678232529,-731.71,0.00016673,2]
[382610173,1756678232539,-719.01,0.00016673,2]
[382610175,1756678232548,-480.0,0.00016673,2]
[382610177,1756678232557,-480.0,0.00016673,2]
[382610179,1756678232567,-34320.81380588,0.00016774,2]
[382610199,1756678232760,-15679.18619412,0.00016774,2]
[382610201,1756678232770,-435.69282181,0.00016774,2]
[382610203,1756678232780,-510.02,0.00016774,2]
[382610205,1756678232790,-480.0,0.00016774,2]
[382610207,1756678232799,-884.01,0.00016774,2]
[382610209,1756678232809,-521.56,0.00016774,2]
[382610211,1756678232819,-515.28,0.00016774,2]
[382610213,1756678232828,-480.0,0.00016774,2]
[382610215,1756678232837,-1311.35,0.00016774,2]
[382610217,1756678232847,-585.58,0.00016774,2]
[382610219,1756678232856,-3862.39,0.00016774,2]
[382610221,1756678232866,-480.0,0.00016774,2]
[382610223,1756678232875,-480.0,0.00016774,2]
[382610225,1756678232884,-480.0,0.00016774,2]
[382610227,1756678232893,-619.3,0.00016774,2]
[382610229,1756678232902,-870.58,0.00016774,2]
[382610231,1756678232912,-771.7,0.00016774,2]
[382610233,1756678232921,-480.0,0.00016774,2]
[382610235,1756678232930,-480.0,0.00016774,2]
[382610237,1756678232940,-480.0,0.00016774,2]
[382610239,1756678232949,-638.61,0.00016774,2]
[382610240,1756678232959,-688.12,0.00016774,2]
[382610242,1756678232968,-706.6,0.00016774,2]
[382610244,1756678232978,-480.0,0.00016774,2]
[382610246,1756678232988,-2595.53,0.00016774,2]
[382610248,1756678232998,-536.97,0.00016774,2]
[382610250,1756678233008,-480.0,0.00016774,2]
[382610252,1756678233018,-1762.48,0.00016774,2]
[382610254,1756678233027,-480.0,0.00016774,2]
[382610256,1756678233036,-620.69,0.00016774,2]
[382610258,1756678233046,-2710.33,0.00016774,2]
[382610260,1756678233055,-884.92,0.00016774,2]
[382610262,1756678233065,-480.0,0.00016774,2]
[382610264,1756678233075,-480.0,0.00016774,2]
[382610266,1756678233084,-567.98,0.00016774,2]
[382610268,1756678233094,-480.0,0.00016774,2]
[382610270,1756678233107,-480.0,0.00016774,2]
[382610272,1756678233116,-480.0,0.00016775,2]
[382610274,1756678233127,-480.0,0.00016775,2]
[382610276,1756678233137,-480.0,0.00016775,2]
[382610277,1756678233147,-480.0,0.00016775,2]
[382610279,1756678233158,-807.92,0.00016775,2]
[382610281,1756678233167,-480.0,0.00016775,2]
[382610283,1756678233177,-480.0,0.00016775,2]
[382610285,1756678233187,-480.0,0.00016775,2]
[382610287,1756678233198,-619.63,0.00016775,2]
[382610289,1756678233208,-574.31,0.00016775,2]
[382610290,1756678233218,-480.0,0.00016775,2]
[382610291,1756678233228,-480.0,0.00016775,2]
[382610292,1756678233238,-221.90496278,0.00016775,2]
[382610301,1756678233415,5000.0,0.000165,2]
[382610302,1756678234260,480.0,0.000165,2]
[382610303,1756678234718,751.07,0.000165,2]
[382610327,1756678238005,736.3,0.000165,2]
[382610359,1756678238309,-480.0,0.00016502,2]
[382610360,1756678238319,-480.0,0.00016502,2]
[382610362,1756678238328,-480.0,0.00016774,2]
[382610364,1756678238339,-751.07,0.00016774,2]
[382610367,1756678238349,-736.3,0.00016774,2]
[382610368,1756678238360,-258.09503722,0.00016775,2]
[382610370,1756678238371,-817.99,0.00016775,2]
[382610373,1756678238381,-480.0,0.00016775,2]
[382610375,1756678238391,-480.0,0.00016775,2]
[382610377,1756678238401,-480.0,0.00016775,2]
[382610379,1756678238411,-480.0,0.00016775,2]
[382610381,1756678238420,-971.42,0.00016775,2]
[382610383,1756678238430,-480.0,0.00016775,2]
[382610384,1756678238441,-856.87,0.00016775,2]
[382610387,1756678238450,-480.0,0.00016775,2]
[382610389,1756678238460,-480.0,0.00016775,2]
[382610390,1756678238469,-480.0,0.00016775,2]
[382610393,1756678238479,-480.0,0.00016775,2]
[382610394,1756678238488,-480.0,0.00016775,2]
[382610396,1756678238498,-529.29,0.00016775,2]
[382610398,1756678238507,-480.0,0.00016775,2]
[382610400,1756678238516,-480.0,0.00016775,2]
[382610402,1756678238525,-480.0,0.00016775,2]
[382610404,1756678238535,-480.0,0.00016775,2]
[382610406,1756678238544,-480.0,0.00016775,2]
[382610408,1756678238553,-480.0,0.00016775,2]
[382610410,1756678238563,-480.0,0.00016775,2]
[382610412,1756678238573,-851.9,0.00016775,2]
[382610414,1756678238582,-480.0,0.00016775,2]
[382610416,1756678238592,-480.0,0.00016775,2]
[382610418,1756678238601,-480.0,0.00016775,2]
[382610421,1756678238612,-508.57,0.00016775,2]
[382610423,1756678238622,-192.28287376,0.00016775,2]
[382610425,1756678238631,-194.61818637,0.00016775,2]
[382610427,1756678238640,-480.0,0.00016775,2]
[382610429,1756678238650,-480.0,0.00016775,2]
[382610431,1756678238661,-854.17,0.00016775,2]
[382610433,1756678238671,-887.61,0.00016775,2]
[382610435,1756678238681,-616.62766039,0.00016775,2]
[382610437,1756678238691,-868.47,0.00016775,2]
[382610439,1756678238700,-480.0,0.00016775,2]
[382610441,1756678238710,-480.0,0.00016775,2]
[382610443,1756678238719,-480.0,0.00016775,2]
[382610445,1756678238728,-480.0,0.00016775,2]
[382610447,1756678238737,-480.0,0.00016775,2]
[382610449,1756678238747,-480.0,0.00016775,2]
[382610451,1756678238756,-480.0,0.00016775,2]
[382610453,1756678238767,-480.0,0.00016775,2]
[382610455,1756678238776,-480.0,0.00016775,2]
[382610457,1756678238786,-480.0,0.00016775,2]
[382610459,1756678238795,-323.38408743,0.00016775,2]
[382610461,1756678238804,-572.97,0.00016775,2]
[382610463,1756678238814,-480.0,0.00016775,2]
[382610465,1756678238823,-480.0,0.00016775,2]
[382610467,1756678238833,-480.0,0.00016775,2]
[382610469,1756678238843,-480.0,0.00016775,2]
[382610471,1756678238852,-480.0,0.00016775,2]
[382610473,1756678238861,-480.0,0.00016775,2]
[382610475,1756678238871,-629.7,0.00016775,2]
[382610477,1756678238881,-238.47418321,0.00016775,2]
[382610479,1756678238890,-480.0,0.00016775,2]
[382610481,1756678238899,-480.0,0.00016775,2]
[382610483,1756678238908,-480.0,0.00016775,2]
[382610484,1756678238918,-565.83,0.00016775,2]
[382610487,1756678238927,-500.0,0.00016775,2]
[382610488,1756678238937,-480.0,0.00016775,2]
[382610490,1756678238947,-480.0,0.00016775,2]
[382610492,1756678238957,-480.0,0.00016775,2]
[382610494,1756678238966,-573.31,0.00016775,2]
[382610496,1756678238975,-480.0,0.00016775,2]
[382610498,1756678238984,-480.0,0.00016775,2]
[382610500,1756678238994,-682.25,0.00016776,2]
[382610502,1756678239004,-480.0,0.00016776,2]
[382610504,1756678239014,-480.0,0.00016776,2]
[382610506,1756678239025,-480.0,0.00016776,2]
[382610508,1756678239034,-480.0,0.00016776,2]
[382610510,1756678239043,-1010.08,0.00016776,2]
[382610512,1756678239052,-480.0,0.00016776,2]
[382610514,1756678239061,-480.0,0.00016776,2]
[382610516,1756678239071,-480.0,0.00016776,2]
[382610518,1756678239080,-569.11,0.00016776,2]
[382610520,1756678239089,-723.98,0.00016776,2]
[382610522,1756678239099,-760.01,0.00016776,2]
[382610525,1756678239113,-576.01,0.00016776,2]
[382610526,1756678239122,-480.0,0.00016776,2]
[382610528,1756678239132,-480.0,0.00016776,2]
[382610531,1756678239143,-480.0,0.00016776,2]
[382610533,1756678239152,-480.0,0.00016776,2]
[382610535,1756678239162,-480.0,0.00016776,2]
[382610537,1756678239171,-480.0,0.00016776,2]
[382610539,1756678239183,-480.0,0.00016776,2]
[382610540,1756678239194,-480.0,0.00016776,2]
[382610542,1756678239204,-480.0,0.00016776,2]
[382610544,1756678239214,-480.0,0.00016776,2]
[382610547,1756678239224,-647.4,0.00016776,2]
[382610548,1756678239233,-480.0,0.00016776,2]
[382610550,1756678239243,-480.0,0.00016776,2]
[382610552,1756678239252,-1439.77,0.00016776,2]
[382610554,1756678239262,-593.04,0.00016776,2]
[382610556,1756678239271,-480.0,0.00016776,2]
[382610559,1756678239281,-602.68,0.00016776,2]
[382610561,1756678239291,-480.0,0.00016776,2]
[382610563,1756678239300,-480.0,0.00016776,2]
[382610565,1756678239309,-480.0,0.00016776,2]
[382610567,1756678239321,-758.91,0.00016776,2]
[382610569,1756678239331,-1275.72,0.00016776,2]
[382610571,1756678239341,-480.0,0.00016776,2]
[382610573,1756678239350,-480.0,0.00016776,2]
[382610575,1756678239359,-1107.49,0.00016776,2]
[382610577,1756678239369,-480.0,0.00016776,2]
[382610579,1756678239378,-480.0,0.00016776,2]
[382610581,1756678239387,-480.0,0.00016776,2]
[382610583,1756678239396,-480.0,0.00016776,2]
[382610585,1756678239405,-480.0,0.00016776,2]
[382610587,1756678239414,-480.0,0.00016776,2]
[382610589,1756678239424,-480.0,0.00016776,2]
[382610590,1756678239435,-480.0,0.00016776,2]
[382610593,1756678239446,-480.0,0.00016776,2]
[382610595,1756678239455,-480.0,0.00016776,2]
[382610596,1756678239465,-480.0,0.00016776,2]
[382610598,1756678239474,-480.0,0.00016776,2]
[382610600,1756678239483,-480.0,0.00016777,2]
[382610602,1756678239493,-480.0,0.00016777,2]
[382610604,1756678239503,-480.0,0.00016777,2]
[382610607,1756678239513,-480.0,0.00016777,2]
[382610608,1756678239522,-698.54,0.00016777,2]
[382610610,1756678239532,-480.0,0.00016777,2]
[382610613,1756678239541,-480.0,0.00016777,2]
[382610615,1756678239552,-480.0,0.00016777,2]
[382610617,1756678239562,-480.0,0.00016777,2]
[382610619,1756678239572,-480.0,0.00016777,2]
[382610620,1756678239582,-480.0,0.00016777,2]
[382610623,1756678239592,-480.0,0.00016777,2]
[382610625,1756678239603,-480.0,0.00016777,2]
[382610626,1756678239613,-483.64,0.00016777,2]
[382610628,1756678239624,-963.11,0.00016777,2]
[382610630,1756678239633,-565.96,0.00016777,2]
[382610632,1756678239643,-480.0,0.00016777,2]
[382610634,1756678239652,-480.0,0.00016777,2]
[382610636,1756678239661,-287.21123042,0.00016777,2]
[382610638,1756678239670,-480.0,0.00016777,2]
[382610640,1756678239679,-507.96,0.00016777,2]
[382610642,1756678239689,-480.0,0.00016777,2]
[382610645,1756678239698,-480.0,0.00016777,2]
[382610647,1756678239707,-480.0,0.00016777,2]
[382610649,1756678239717,-841.27,0.00016778,2]
[382610651,1756678239726,-480.0,0.00016778,2]
[382610653,1756678239736,-480.0,0.00016778,2]
[382610655,1756678239746,-563.8,0.00016778,2]
[382610657,1756678239755,-522.71,0.00016778,2]
[382610659,1756678239765,-480.0,0.00016778,2]
[382610662,1756678239774,-480.0,0.00016778,2]
[382610665,1756678239784,-480.0,0.00016778,2]
[382610668,1756678239793,-480.0,0.00016778,2]
[382610671,1756678239803,-480.0,0.00016778,2]
[382610674,1756678239812,-716.34,0.00016778,2]
[382610677,1756678239821,-480.0,0.00016778,2]
[382610680,1756678239831,-735.23,0.00016778,2]
[382610683,1756678239841,-1324.42,0.00016778,2]
[382610685,1756678239850,-480.0,0.00016778,2]
[382610687,1756678239859,-541.11,0.00016778,2]
[382610689,1756678239868,-480.0,0.00016778,2]
[382610691,1756678239878,-480.0,0.00016778,2]
[382610693,1756678239888,-480.0,0.00016778,2]
[382610695,1756678239897,-480.0,0.00016778,2]
[382610697,1756678239907,-480.0,0.00016778,2]
[382610699,1756678239916,-480.0,0.00016778,2]
[382610701,1756678239926,-480.0,0.00016778,2]
[382610703,1756678239935,-480.0,0.00016778,2]
[382610705,1756678239945,-480.0,0.00016778,2]
[382610707,1756678239954,-695.93,0.00016778,2]
[382610709,1756678239963,-480.0,0.00016778,2]
[382610711,1756678239973,-480.0,0.00016778,2]
[382610713,1756678239983,-480.0,0.00016778,2]
[382610714,1756678239992,-480.0,0.00016778,2]
[382610715,1756678240003,-300.0,0.0001683,2]
[382610716,1756678240198,-300.0,0.0001683,2]
[382610717,1756678240208,-300.0,0.0001683,2]
[382610718,1756678240217,-300.0,0.0001683,2]
[382610719,1756678240227,-300.0,0.0001683,2]
[382610720,1756678240236,-300.0,0.0001683,2]
[382610721,1756678240245,-300.0,0.0001683,2]
[382610722,1756678240255,-300.0,0.0001683,2]
[382610723,1756678240266,-300.0,0.0001683,2]
[382610724,1756678240276,-300.0,0.0001683,2]
[382610726,1756678240286,-300.0,0.0001683,2]
[382610728,1756678240295,-300.0,0.0001683,2]
[382610730,1756678240304,-300.0,0.0001683,2]
[382610732,1756678240314,-300.0,0.0001683,2]
[382610734,1756678240323,-300.0,0.0001683,2]
[382610736,1756678240334,-600.0,0.0001683,2]
[382610738,1756678240344,-151.0,0.000169,2]
[382610740,1756678240354,-4646.17989352,0.00016928,2]
[382610742,1756678240363,-480.0,0.00016947,2]
[382610744,1756678240373,-573.45,0.00016947,2]
[382610746,1756678240383,-480.0,0.00016947,2]
[382610748,1756678240392,-731.71,0.00016947,2]
[382610750,1756678240402,-719.01,0.00016947,2]
[382610752,1756678240411,-480.0,0.00016947,2]
[382610754,1756678240421,-197.09858936,0.00016995,2]
[382610756,1756678240431,-2988.10233505,0.00017,2]
[382610758,1756678240442,-661.12,0.00017048,2]
[382610760,1756678240452,-480.0,0.00017048,2]
[382610762,1756678240461,-480.0,0.00017048,2]
[382610764,1756678240471,-480.0,0.00017048,2]
[382610766,1756678240480,-480.0,0.00017048,2]
[382610768,1756678240490,-900.25,0.00017048,2]
[382610770,1756678240500,-480.0,0.00017048,2]
[382610772,1756678240509,-480.0,0.00017048,2]
[382610774,1756678240519,-480.0,0.00017048,2]
[382610776,1756678240528,-652.62,0.00017048,2]
[382610778,1756678240537,-569.93,0.00017048,2]
[382610780,1756678240547,-480.0,0.00017048,2]
[382610782,1756678240556,-752.81,0.00017048,2]
[382610784,1756678240565,-567.49536524,0.00017048,2]
[382610786,1756678240575,-860.2,0.00017048,2]
[382610788,1756678240584,-480.0,0.00017048,2]
[382610790,1756678240594,-480.0,0.00017048,2]
[382610792,1756678240604,-803.54,0.00017048,2]
[382610794,1756678240613,-480.0,0.00017048,2]
[382610796,1756678240623,-480.0,0.00017048,2]
[382610798,1756678240633,-480.0,0.00017048,2]
[382610800,1756678240642,-480.0,0.00017048,2]
[382610802,1756678240651,-480.0,0.00017048,2]
[382610804,1756678240661,-480.0,0.00017048,2]
[382610806,1756678240671,-480.0,0.00017048,2]
[382610808,1756678240682,-480.0,0.00017048,2]
[382610809,1756678240695,-480.0,0.00017048,2]
[382610812,1756678240704,-684.81,0.00017048,2]
[382610814,1756678240715,-480.0,0.00017048,2]
[382610816,1756678240725,-480.0,0.00017048,2]
[382610817,1756678240736,-480.0,0.00017048,2]
[382610819,1756678240747,-738.09,0.00017048,2]
[382610821,1756678240757,-480.0,0.00017048,2]
[382610824,1756678240767,-749.14,0.00017048,2]
[382610825,1756678240776,-757.4,0.00017048,2]
[382610828,1756678240786,-480.0,0.00017048,2]
[382610830,1756678240795,-879.79,0.00017048,2]
[382610832,1756678240804,-480.0,0.00017048,2]
[382610834,1756678240814,-450.7,0.00017048,2]
[382610835,1756678240823,-1008.99,0.00017048,2]
[382610837,1756678240832,-480.0,0.00017048,2]
[382610840,1756678240842,-480.0,0.00017048,2]
[382610841,1756678240851,-480.0,0.00017048,2]
[382610843,1756678240860,-480.0,0.00017048,2]
[382610846,1756678240870,-480.0,0.00017048,2]
[382610847,1756678240880,-573.96,0.00017048,2]
[382610849,1756678240891,-1535.01,0.00017048,2]
[382610851,1756678240900,-1197.27,0.00017048,2]
[382610853,1756678240909,-480.0,0.00017048,2]
[382610855,1756678240919,-529.13,0.00017048,2]
[382610857,1756678240928,-752.56,0.00017048,2]
[382610859,1756678240938,-641.55,0.00017048,2]
[382610861,1756678240947,-480.0,0.00017048,2]
[382610863,1756678240956,-638.23,0.00017048,2]
[382610866,1756678240966,-480.0,0.00017048,2]
[382610867,1756678240975,-480.0,0.00017048,2]
[382610869,1756678240984,-480.0,0.00017048,2]
[382610871,1756678240994,-480.0,0.00017048,2]
[382610873,1756678241003,-480.0,0.00017048,2]
[382610875,1756678241012,-480.0,0.00017048,2]
[382610877,1756678241022,-896.92,0.00017048,2]
[382610879,1756678241031,-2783.75,0.00017048,2]
[382610881,1756678241040,-510.02,0.00017048,2]
[382610883,1756678241050,-480.0,0.00017048,2]
[382610885,1756678241059,-884.01,0.00017048,2]
[382610887,1756678241071,-521.56,0.00017048,2]
[382610889,1756678241081,-515.28,0.00017048,2]
[382610891,1756678241090,-480.0,0.00017048,2]
[382610893,1756678241100,-1311.35,0.00017048,2]
[382610895,1756678241113,-585.58,0.00017048,2]
[382610897,1756678241122,-3862.39,0.00017048,2]
[382610899,1756678241131,-480.0,0.00017048,2]
[382610901,1756678241141,-480.0,0.00017048,2]
[382610903,1756678241150,-619.3,0.00017048,2]
[382610905,1756678241159,-870.58,0.00017048,2]
[382610907,1756678241168,-771.7,0.00017048,2]
[382610909,1756678241179,-480.0,0.00017048,2]
[382610911,1756678241189,-480.0,0.00017048,2]
[382610913,1756678241198,-480.0,0.00017048,2]
[382610915,1756678241207,-638.61,0.00017048,2]
[382610917,1756678241216,-688.12,0.00017048,2]
[382610919,1756678241225,-706.6,0.00017048,2]
[382610921,1756678241235,-2595.53,0.00017048,2]
[382610923,1756678241244,-536.97,0.00017048,2]
[382610925,1756678241252,-480.0,0.00017048,2]
[382610927,1756678241262,-1762.48,0.00017048,2]
[382610929,1756678241271,-361.12958997,0.00017048,2]
[382610931,1756678241280,-620.69,0.00017048,2]
[382610933,1756678241290,-2710.33,0.00017048,2]
[382610935,1756678241299,-884.92,0.00017048,2]
[382610937,1756678241308,-480.0,0.00017048,2]
[382610939,1756678241317,-450.20651157,0.00017048,2]
[382610941,1756678241326,-567.98,0.00017048,2]
[382610943,1756678241336,-480.0,0.00017048,2]
[382610945,1756678241345,-480.0,0.00017048,2]
[382610947,1756678241354,-751.07,0.00017048,2]
[382610949,1756678241363,-480.0,0.00017049,2]
[382610951,1756678241372,-480.0,0.00017049,2]
[382610953,1756678241381,-480.0,0.00017049,2]
[382610955,1756678241390,-480.0,0.00017049,2]
[382610957,1756678241400,-807.92,0.00017049,2]
[382610959,1756678241410,-480.0,0.00017049,2]
[382610961,1756678241420,-480.0,0.00017049,2]